fUSD/lending_fUSD_20260224
["ID","MTS","AMOUNT","RATE_DAILY","PERIOD"]
[406580050,1771953871429,-500.0,9.695e-05,2]
[406580051,1771953871455,-500.0,9.695e-05,2]
[406580052,1771953871481,-500.0,9.695e-05,2]
[406580053,1771953871507,-500.0,9.695e-05,2]
[406580054,1771953871533,-500.0,9.695e-05,2]
[406580055,1771953871558,-500.0,9.695e-05,2]
[406580056,1771953871583,-500.0,9.695e-05,2]
[406580057,1771953871608,-161.75264258,9.695e-05,2]
[406580058,1771953871633,-500.0,9.695e-05,2]
[406580059,1771953871660,-500.0,9.695e-05,2]
[406580060,1771953871691,-500.0,9.695e-05,2]
[406580061,1771953871723,-500.0,9.695e-05,2]
[406580062,1771953871756,-500.0,9.695e-05,2]
[406580063,1771953871786,-500.0,9.695e-05,2]
[406580064,1771953871822,-500.0,9.695e-05,2]
[406580065,1771953871853,-182.91645037,9.695e-05,2]
[406580066,1771953871881,-150.0,9.695e-05,2]
[406580067,1771953871909,-300.0,9.695e-05,2]
[406580068,1771953871935,-500.0,9.695e-05,2]
[406580069,1771953871964,-71193.73978231,9.696e-05,2]
[406580070,1771953899986,-400.0,9.695e-05,2]
[406580073,1771953960170,3908.15794826,8e-05,2]
[406580082,1771954104936,150.0,0.00013172,7]
[406580085,1771954204618,150.0,0.00011392,7]
[406580099,1771954232404,-300.0,9.585e-05,2]
[406580100,1771954232416,-1200.0,9.585e-05,2]
[406580101,1771954232427,-10829.97801964,9.586e-05,2]
[406580102,1771954232438,-150.0,9.594e-05,2]
[406580103,1771954232448,-306.46892712,9.595e-05,2]
[406580104,1771954232458,-500.0,9.595e-05,2]
[406580105,1771954232468,-500.0,9.595e-05,2]
[406580106,1771954232478,-500.0,9.595e-05,2]
[406580107,1771954232487,-500.0,9.595e-05,2]
[406580108,1771954232497,-500.0,9.595e-05,2]
[406580109,1771954232507,-500.0,9.595e-05,2]
[406580110,1771954232519,-500.0,9.595e-05,2]
[406580119,1771954232763,-477.98474679,9.595e-05,2]
[406580122,1771954232783,-22.01525321,9.595e-05,2]
[406580124,1771954232793,-500.0,9.595e-05,2]
[406580126,1771954232802,-500.0,9.595e-05,2]
[406580128,1771954232811,-183.78102203,9.595e-05,2]
[406580130,1771954232822,-316.21897797,9.595e-05,2]
[406580132,1771954232832,-500.0,9.595e-05,2]
[406580134,1771954232842,-500.0,9.595e-05,2]
[406580136,1771954232851,-21.49088411,9.595e-05,2]
[406580138,1771954232862,-478.50911589,9.595e-05,2]
[406580140,1771954232873,-500.0,9.595e-05,2]
[406580142,1771954232884,-278.51293169,9.595e-05,2]
[406580145,1771954232896,-221.48706831,9.595e-05,2]
[406580147,1771954232905,-237.84939217,9.595e-05,2]
[406580149,1771954232917,-316.48814821,9.595e-05,2]
[406580151,1771954232926,-500.0,9.595e-05,2]
[406580153,1771954232936,-500.0,9.595e-05,2]
[406580155,1771954232945,-257.12377575,9.595e-05,2]
[406580157,1771954232955,-431.23437045,9.595e-05,2]
[406580159,1771954232966,-68.76562955,9.595e-05,2]
[406580160,1771954232975,-500.0,9.595e-05,2]
[406580162,1771954232984,-32.38807604,9.595e-05,2]
[406580192,1771954238482,-467.61192396,9.595e-05,2]
[406580193,1771954238493,-500.0,9.595e-05,2]
[406580194,1771954238503,-500.0,9.595e-05,2]
[406580195,1771954238513,-500.0,9.595e-05,2]
[406580196,1771954238523,-500.0,9.595e-05,2]
[406580197,1771954238533,-500.0,9.595e-05,2]
[406580198,1771954238543,-500.0,9.595e-05,2]
[406580199,1771954238553,-53.5731713,9.595e-05,2]
[406580200,1771954238569,-446.4268287,9.595e-05,2]
[406580201,1771954238579,-500.0,9.595e-05,2]
[406580202,1771954238588,-219.02350656,9.595e-05,2]
[406580203,1771954238642,-68.10287467,9.595e-05,2]
[406580204,1771954238652,-1673.38074958,9.596e-05,2]
[406580227,1771954240407,-3498326.61925042,9.596e-05,2]
[406580228,1771954240416,-2500.0,9.596e-05,2]
[406580229,1771954240425,-4303.83404352,9.596e-05,2]
[406580230,1771954240434,-742.76,9.652e-05,2]
[406580231,1771954240443,-156.573042,9.659e-05,2]
[406580232,1771954240452,-1640.3,9.786e-05,2]
[406580233,1771954240461,-3391.35,9.839e-05,2]
[406580234,1771954240470,-4263.61,9.843e-05,2]
[406580235,1771954240478,-9999.99,9.99e-05,2]
[406580236,1771954240487,-299.99,9.99e-05,2]
[406580237,1771954240496,-4296.28,9.99e-05,2]
[406580238,1771954240505,-499.99,9.99e-05,2]
[406580239,1771954240513,-999.99,9.99e-05,2]
[406580240,1771954240522,-9999.99,9.99e-05,2]
[406580241,1771954240531,-9999.99,9.99e-05,2]
[406580242,1771954240541,-9999.99,9.99e-05,2]
[406580243,1771954240550,-150.99,9.99e-05,2]
[406580244,1771954240559,-9999.99,0.0001,2]
[406580245,1771954240568,-49999.99,0.0001,2]
[406580246,1771954240577,-150.99,0.0001,2]
[406580247,1771954240586,-500.0,0.0001,2]
[406580248,1771954240595,-151.0,0.0001,2]
[406580249,1771954240604,-151.0,0.0001,2]
[406580250,1771954240613,-151.0,0.0001,2]
[406580251,1771954240622,-151.0,0.0001,2]
[406580252,1771954240630,-151.0,0.0001,2]
[406580253,1771954240639,-151.0,0.0001,2]
[406580254,1771954240648,-151.0,0.0001,2]
[406580255,1771954240657,-151.0,0.0001,2]
[406580256,1771954240667,-151.0,0.0001,2]
[406580257,1771954240676,-151.0,0.0001,2]
[406580258,1771954240685,-151.0,0.0001,2]
[406580259,1771954240694,-151.0,0.0001,2]
[406580260,1771954240703,-151.0,0.0001,2]
[406580261,1771954240714,-151.0,0.0001,2]
[406580262,1771954240723,-151.0,0.0001,2]
[406580263,1771954240732,-151.0,0.0001,2]
[406580264,1771954240741,-151.0,0.0001,2]
[406580265,1771954240750,-151.0,0.0001,2]
[406580266,1771954240759,-151.0,0.0001,2]
[406580267,1771954240768,-151.0,0.0001,2]
[406580268,1771954240777,-151.0,0.0001,2]
[406580269,1771954240786,-1003.76853928,0.0001,2]
[406580270,1771954240795,-151.0,0.0001,2]
[406580271,1771954240803,-151.0,0.0001,2]
[406580272,1771954240812,-151.0,0.0001,2]
[406580273,1771954240822,-151.0,0.0001,2]
[406580274,1771954240830,-151.0,0.0001,2]
[406580275,1771954240839,-151.0,0.0001,2]
[406580276,1771954240848,-151.0,0.0001,2]
[406580277,1771954240857,-151.0,0.0001,2]
[406580278,1771954240866,-151.0,0.0001,2]
[406580279,1771954240878,-151.0,0.0001,2]
[406580280,1771954240887,-151.0,0.0001,2]
[406580281,1771954240896,-151.0,0.0001,2]
[406580282,1771954240905,-151.0,0.0001,2]
[406580283,1771954240915,-151.0,0.0001,2]
[406580284,1771954240924,-151.0,0.0001,2]
[406580285,1771954240933,-151.0,0.0001,2]
[406580286,1771954240941,-151.0,0.0001,2]
[406580287,1771954240952,-297.43581831,0.0001,2]
[406580288,1771954240961,-220.45003022,0.0001,2]
[406580289,1771954240970,-191.0,0.00010167,2]
[406580290,1771954240979,-188.0,0.00010188,2]
[406580291,1771954240989,-500.0,0.00010274,2]
[406580292,1771954240998,-500.0,0.000103,2]
[406580293,1771954241007,-500.0,0.000103,2]
[406580294,1771954241016,-600.0,0.000103,2]
[406580295,1771954241025,-610.81241278,0.000103,2]
[406580296,1771954241035,-1700.0,0.000103,2]
[406580297,1771954241044,-1700.0,0.000103,2]
[406580298,1771954241053,-500.0,0.000103,2]
[406580299,1771954241063,-1700.0,0.000103,2]
[406580300,1771954241072,-500.0,0.000103,2]
[406580301,1771954241082,-1700.0,0.000103,2]
[406580302,1771954241092,-500.0,0.000103,2]
[406580303,1771954241102,-500.0,0.000103,2]
[406580304,1771954241111,-1700.0,0.000103,2]
[406580305,1771954241120,-500.0,0.000103,2]
[406580306,1771954241131,-500.0,0.000103,2]
[406580307,1771954241140,-1700.0,0.000103,2]
[406580308,1771954241149,-973.37124608,0.000103,2]
[406580309,1771954241159,-500.0,0.000103,2]
[406580310,1771954241168,-1700.0,0.000103,2]
[406580311,1771954241177,-500.0,0.000103,2]
[406580312,1771954241187,-1700.0,0.000103,2]
[406580313,1771954241196,-500.0,0.000103,2]
[406580314,1771954241205,-1700.0,0.000103,2]
[406580315,1771954241214,-870.452302,0.000103,2]
[406580316,1771954241223,-1700.0,0.000103,2]
[406580317,1771954241232,-1700.0,0.000103,2]
[406580318,1771954241242,-1700.0,0.000103,2]
[406580319,1771954241251,-1700.0,0.000103,2]
[406580320,1771954241260,-2149.16632552,0.000103,2]
[406580321,1771954241269,-500.0,0.000103,2]
[406580322,1771954241278,-500.0,0.000103,2]
[406580323,1771954241287,-500.0,0.000103,2]
[406580324,1771954241297,-500.0,0.000103,2]
[406580325,1771954241305,-500.0,0.000103,2]
[406580326,1771954241315,-500.0,0.000103,2]
[406580327,1771954241325,-500.0,0.000103,2]
[406580328,1771954241334,-500.0,0.000103,2]
[406580329,1771954241343,-500.0,0.000103,2]
[406580330,1771954241352,-500.0,0.000103,2]
[406580331,1771954241361,-500.0,0.000103,2]
[406580332,1771954241371,-823.91748752,0.000103,2]
[406580333,1771954241380,-500.0,0.000103,2]
[406580334,1771954241391,-500.0,0.000103,2]
[406580335,1771954241401,-500.0,0.000103,2]
[406580336,1771954241411,-500.0,0.000103,2]
[406580337,1771954241420,-500.0,0.000103,2]
[406580338,1771954241430,-653.71723476,0.000103,2]
[406580339,1771954241441,-500.0,0.000103,2]
[406580340,1771954241450,-500.0,0.000103,2]
[406580341,1771954241459,-500.0,0.000103,2]
[406580342,1771954241469,-500.0,0.000103,2]
[406580343,1771954241478,-500.0,0.000103,2]
[406580344,1771954241487,-500.0,0.000103,2]
[406580345,1771954241499,-500.0,0.000103,2]
[406580346,1771954241507,-500.0,0.000103,2]
[406580347,1771954241516,-500.0,0.000103,2]
[406580348,1771954241524,-500.0,0.000103,2]
[406580349,1771954241532,-500.0,0.000103,2]
[406580350,1771954241540,-500.0,0.000103,2]
[406580351,1771954241548,-418.0,0.00010366,2]
[406580352,1771954241556,-323.0,0.00010386,2]
[406580353,1771954241564,-1251.0,0.00010401,2]
[406580354,1771954241572,-1017.0,0.00010422,2]
[406580355,1771954241580,-281.66,0.00010536,2]
[406580356,1771954241589,-420.0,0.00010543,2]
[406580357,1771954241597,-1680.0,0.00010543,2]
[406580358,1771954241606,-500.0,0.00010548,2]
[406580359,1771954241614,-255.0,0.00010553,2]
[406580360,1771954241623,-500.0,0.00010573,2]
[406580361,1771954241631,-500.0,0.00010573,2]
[406580362,1771954241641,-500.0,0.00010573,2]
[406580363,1771954241650,-500.0,0.00010573,2]
[406580364,1771954241659,-500.0,0.00010573,2]
[406580365,1771954241668,-500.0,0.00010573,2]
[406580366,1771954241678,-500.0,0.00010573,2]
[406580367,1771954241688,-500.0,0.00010573,2]
[406580368,1771954241697,-500.0,0.00010573,2]
[406580369,1771954241706,-500.0,0.00010573,2]
[406580370,1771954241715,-156.77334247,0.00010573,2]
[406580371,1771954241724,-500.0,0.00010573,2]
[406580372,1771954241734,-500.0,0.00010573,2]
[406580373,1771954241743,-500.0,0.00010573,2]
[406580374,1771954241752,-1852.42,0.00010605,2]
[406580375,1771954241761,-1500.0,0.00010617,2]
[406580376,1771954241770,-250.0,0.00010663,2]
[406580377,1771954241780,-500.0,0.00010703,2]
[406580378,1771954241790,-500.0,0.00010822,2]
[406580379,1771954241798,-32093.85,0.00010824,2]
[406580380,1771954241807,-742.76,0.00010859,2]
[406580381,1771954241816,-2288.41236254,0.000109,2]
[406580382,1771954241824,-150.0,0.00010959,2]
[406580383,1771954241833,-16914.87,0.00010959,2]
[406580384,1771954241843,-150.0,0.00010959,2]
[406580385,1771954241851,-500.0,0.00011096,2]
[406580386,1771954241859,-27722.28460675,0.00011099,2]
[406580387,1771954241868,-27722.28460674,0.00011099,2]
[406580388,1771954241877,-9979.11990484,0.00011099,2]
[406580389,1771954241891,-9979.11990476,0.00011099,2]
[406580390,1771954241900,-550.01264972,0.00011121,2]
[406580391,1771954241909,-1000.0,0.00011121,2]
[406580392,1771954241918,-1000.0,0.00011121,2]
[406580393,1771954241929,-1000.0,0.00011121,2]
[406580394,1771954241938,-1000.0,0.00011121,2]
[406580395,1771954241947,-1000.0,0.00011121,2]
[406580396,1771954241957,-501.90132287,0.00011121,2]
[406580397,1771954241966,-235.93365693,0.00011121,2]
[406580398,1771954241975,-1002.25561136,0.00011121,2]
[406580399,1771954241984,-328.54094648,0.00011121,2]
[406580400,1771954241993,-1000.0,0.00011121,2]
[406580401,1771954242003,-501.70650637,0.00011121,2]
[406580402,1771954242012,-1000.0,0.00011121,2]
[406580403,1771954242021,-281.66,0.00011121,2]
[406580404,1771954242030,-9999.99,0.00011281,2]
[406580405,1771954242254,-1413.37,0.00011281,2]
[406580406,1771954242265,-9979.11990476,0.00011364,2]
[406580407,1771954242274,-150.0,0.00011392,2]
[406580408,1771954242284,-27722.28460674,0.00011549,2]
[406580409,1771954242293,-587.0,0.00011598,2]
[406580410,1771954242303,-2351.0,0.00011598,2]
[406580411,1771954242312,-433.0,0.00011609,2]
[406580412,1771954242321,-871.93707751,0.00011668,2]
[406580413,1771954242330,-1500.0,0.00011668,2]
[406580414,1771954242339,-1276.82336401,0.00011668,2]
[406580415,1771954242348,-1500.0,0.00011668,2]
[406580416,1771954242356,-527.71923747,0.00011668,2]
[406580417,1771954242365,-1500.0,0.00011668,2]
[406580418,1771954242374,-1500.0,0.00011668,2]
[406580419,1771954242384,-281.66,0.00011707,2]
[406580420,1771954242393,-33116.36,0.00012055,2]
[406580421,1771954242402,-742.76,0.00012065,2]
[406580422,1771954242410,-2000.0,0.00012216,2]
[406580423,1771954242419,-503.87713345,0.00012216,2]
[406580424,1771954242429,-2000.0,0.00012216,2]
[406580425,1771954242438,-2000.0,0.00012216,2]
[406580426,1771954242446,-281.66,0.00012292,2]
[406580427,1771954242456,-9979.11990476,0.00012297,2]
[406580428,1771954242465,-27722.28460674,0.0001248,2]
[406580429,1771954242474,-250.0,0.00012666,2]
[406580430,1771954242484,-7547.76265483,0.00012693,2]
[406580431,1771954242492,-823.0,0.00012757,2]
[406580432,1771954242501,-3292.0,0.00012757,2]
[406580433,1771954242510,-374.73958587,0.00012764,2]
[406580434,1771954242518,-2500.0,0.00012764,2]
[406580435,1771954242526,-2500.0,0.00012764,2]
[406580436,1771954242542,-736.0,0.00012769,2]
[406580437,1771954242550,-281.66,0.00012877,2]
[406580438,1771954242558,-5366.86121493,0.0001305,2]
[406580439,1771954242566,-500.0,0.0001321,2]
[406580440,1771954242575,-500.0,0.0001321,2]
[406580441,1771954242584,-500.0,0.0001321,2]
[406580442,1771954242593,-500.0,0.0001321,2]
[406580443,1771954242603,-1700.0,0.0001321,2]
[406580444,1771954242613,-1700.0,0.0001321,2]
[406580445,1771954242623,-1700.0,0.0001321,2]
[406580446,1771954242633,-1700.0,0.0001321,2]
[406580447,1771954242642,-1700.0,0.0001321,2]
[406580448,1771954242651,-1700.0,0.0001321,2]
[406580449,1771954242660,-1700.0,0.0001321,2]
[406580450,1771954242669,-1700.0,0.0001321,2]
[406580451,1771954242678,-1700.0,0.0001321,2]
[406580452,1771954242687,-500.0,0.0001321,2]
[406580453,1771954242696,-1700.0,0.0001321,2]
[406580454,1771954242706,-500.0,0.0001321,2]
[406580455,1771954242715,-1700.0,0.0001321,2]
[406580456,1771954242724,-500.0,0.0001321,2]
[406580457,1771954242733,-1700.0,0.0001321,2]
[406580458,1771954242742,-500.0,0.0001321,2]
[406580459,1771954242751,-500.0,0.0001321,2]
[406580460,1771954242760,-1700.0,0.0001321,2]
[406580461,1771954242769,-500.0,0.0001321,2]
[406580462,1771954242778,-1700.0,0.0001321,2]
[406580463,1771954242787,-500.0,0.0001321,2]
[406580464,1771954242796,-1700.0,0.0001321,2]
[406580465,1771954242804,-500.0,0.0001321,2]
[406580466,1771954242813,-500.0,0.0001321,2]
[406580467,1771954242822,-500.0,0.0001321,2]
[406580468,1771954242831,-500.0,0.0001321,2]
[406580469,1771954242840,-500.0,0.0001321,2]
[406580470,1771954242850,-500.0,0.0001321,2]
[406580471,1771954242859,-500.0,0.0001321,2]
[406580472,1771954242868,-500.0,0.0001321,2]
[406580473,1771954242881,-500.0,0.0001321,2]
[406580474,1771954242895,-500.0,0.0001321,2]
[406580475,1771954242904,-500.0,0.0001321,2]
[406580476,1771954242917,-500.0,0.0001321,2]
[406580477,1771954242926,-500.0,0.0001321,2]
[406580478,1771954242936,-500.0,0.0001321,2]
[406580479,1771954242946,-500.0,0.0001321,2]
[406580480,1771954242959,-500.0,0.0001321,2]
[406580481,1771954242968,-500.0,0.0001321,2]
[406580483,1771954242977,-500.0,0.0001321,2]
[406580484,1771954242988,-500.0,0.0001321,2]
[406580485,1771954242997,-500.0,0.0001321,2]
[406580486,1771954243006,-500.0,0.0001321,2]
[406580488,1771954243015,-500.0,0.0001321,2]
[406580489,1771954243025,-500.0,0.0001321,2]
[406580491,1771954243034,-500.0,0.0001321,2]
[406580492,1771954243044,-500.0,0.0001321,2]
[406580493,1771954243053,-500.0,0.0001321,2]
[406580494,1771954243063,-500.0,0.0001321,2]
[406580495,1771954243072,-500.0,0.0001321,2]
[406580496,1771954243081,-500.0,0.0001321,2]
[406580497,1771954243091,-500.0,0.0001321,2]
[406580498,1771954243105,-500.0,0.0001321,2]
[406580499,1771954243114,-500.0,0.0001321,2]
[406580500,1771954243124,-500.0,0.0001321,2]
[406580501,1771954243133,-500.0,0.0001321,2]
[406580502,1771954243143,-500.0,0.0001321,2]
[406580503,1771954243152,-500.0,0.0001321,2]
[406580504,1771954243162,-961.04385964,0.0001321,2]
[406580505,1771954243173,-500.0,0.0001321,2]
[406580507,1771954243182,-500.0,0.0001321,2]
[406580509,1771954243192,-500.0,0.0001321,2]
[406580511,1771954243201,-500.0,0.0001321,2]
[406580512,1771954243210,-500.0,0.0001321,2]
[406580513,1771954243220,-500.0,0.0001321,2]
[406580514,1771954243230,-500.0,0.0001321,2]
[406580515,1771954243239,-500.0,0.0001321,2]
[406580516,1771954243248,-9979.11990476,0.00013231,2]
[406580517,1771954243257,-742.76,0.00013272,2]
[406580518,1771954243267,-877.20909449,0.00013312,2]
[406580519,1771954243278,-3000.0,0.00013312,2]
[406580520,1771954243287,-27722.28460674,0.00013412,2]
[406580521,1771954243300,-281.66,0.00013463,2]
[406580522,1771954243310,-1000.0,0.000135,2]
[406580523,1771954243319,-3724.8351527,0.00013698,2]
[406580524,1771954243328,-500.0,0.00013698,2]
[406580525,1771954243338,-500.0,0.00013698,2]
[406580526,1771954243347,-500.0,0.00013698,2]
[406580527,1771954243357,-500.0,0.00013698,2]
[406580528,1771954243367,-500.0,0.00013698,2]
[406580529,1771954243376,-500.0,0.00013698,2]
[406580530,1771954243386,-500.0,0.00013698,2]
[406580531,1771954243396,-500.0,0.00013698,2]
[406580532,1771954243405,-500.0,0.00013698,2]
[406580533,1771954243414,-500.0,0.00013698,2]
[406580534,1771954243423,-500.0,0.00013698,2]
[406580535,1771954243432,-500.0,0.00013698,2]
[406580536,1771954243441,-500.0,0.00013698,2]
[406580537,1771954243450,-500.0,0.00013698,2]
[406580538,1771954243460,-648.33639493,0.00013698,2]
[406580539,1771954243469,-565.33,0.00013698,2]
[406580540,1771954243478,-565.33,0.00013698,2]
[406580541,1771954243489,-565.33,0.00013698,2]
[406580542,1771954243498,-565.33,0.00013698,2]
[406580543,1771954243507,-565.33,0.00013698,2]
[406580544,1771954243517,-565.33,0.00013698,2]
[406580545,1771954243526,-565.33,0.00013698,2]
[406580546,1771954243535,-565.33,0.00013698,2]
[406580547,1771954243544,-565.33,0.00013698,2]
[406580548,1771954243553,-565.33,0.00013698,2]
[406580549,1771954243562,-565.33,0.00013698,2]
[406580550,1771954243571,-565.33,0.00013698,2]
[406580551,1771954243580,-565.33,0.00013698,2]
[406580552,1771954243589,-565.33,0.00013698,2]
[406580553,1771954243599,-565.33,0.00013698,2]
[406580554,1771954243607,-565.33,0.00013698,2]
[406580555,1771954243616,-500.0,0.00013698,2]
[406580556,1771954243626,-500.0,0.00013698,2]
[406580557,1771954243634,-500.0,0.00013698,2]
[406580558,1771954243644,-500.0,0.00013698,2]
[406580559,1771954243653,-500.0,0.00013698,2]
[406580560,1771954243662,-500.0,0.00013698,2]
[406580561,1771954243671,-500.0,0.00013698,2]
[406580562,1771954243682,-500.0,0.00013698,2]
[406580563,1771954243691,-395.88818611,0.00013698,2]
[406580564,1771954243700,-500.0,0.00013698,2]
[406580565,1771954243709,-500.0,0.00013698,2]
[406580566,1771954243719,-500.0,0.00013698,2]
[406580567,1771954243728,-500.0,0.00013698,2]
[406580568,1771954243738,-500.0,0.00013698,2]
[406580569,1771954243747,-500.0,0.00013698,2]
[406580570,1771954243757,-500.0,0.00013698,2]
[406580571,1771954243766,-500.0,0.00013698,2]
[406580572,1771954243775,-500.0,0.00013698,2]
[406580573,1771954243783,-500.0,0.00013698,2]
[406580574,1771954243792,-500.0,0.00013698,2]
[406580575,1771954243801,-500.0,0.00013698,2]
[406580576,1771954243811,-500.0,0.00013698,2]
[406580577,1771954243820,-500.0,0.00013698,2]
[406580578,1771954243829,-500.0,0.00013698,2]
[406580579,1771954243838,-500.0,0.00013698,2]
[406580580,1771954243847,-500.0,0.00013698,2]
[406580581,1771954243857,-500.0,0.00013698,2]
[406580582,1771954243866,-500.0,0.00013698,2]
[406580583,1771954243876,-500.0,0.00013698,2]
[406580584,1771954243889,-500.0,0.00013698,2]
[406580585,1771954243901,-501.58967205,0.00013698,2]
[406580586,1771954243910,-500.0,0.00013698,2]
[406580587,1771954243919,-500.0,0.00013698,2]
[406580588,1771954243930,-500.0,0.00013698,2]
[406580589,1771954243939,-500.0,0.00013698,2]
[406580590,1771954243949,-500.0,0.00013698,2]
[406580591,1771954243959,-500.0,0.00013698,2]
[406580592,1771954243969,-500.0,0.00013698,2]
[406580593,1771954243979,-500.0,0.00013698,2]
[406580594,1771954243989,-510.28250517,0.00013698,2]
[406580595,1771954243999,-533.31,0.00013698,2]
[406580596,1771954244009,-500.0,0.00013698,2]
[406580597,1771954244020,-500.0,0.00013698,2]
[406580598,1771954244029,-500.0,0.00013698,2]
[406580599,1771954244039,-500.0,0.00013698,2]
[406580600,1771954244048,-500.0,0.00013698,2]
[406580601,1771954244057,-500.0,0.00013698,2]
[406580602,1771954244067,-500.0,0.00013698,2]
[406580603,1771954244085,-500.0,0.00013698,2]
[406580604,1771954244097,-500.0,0.00013698,2]
[406580605,1771954244106,-500.0,0.00013698,2]
[406580606,1771954244115,-500.0,0.00013698,2]
[406580607,1771954244124,-500.0,0.00013698,2]
[406580608,1771954244134,-500.0,0.00013698,2]
[406580609,1771954244145,-500.0,0.00013698,2]
[406580610,1771954244155,-500.0,0.00013698,2]
[406580611,1771954244164,-391.17971065,0.00013698,2]
[406580612,1771954244174,-500.0,0.00013698,2]
[406580613,1771954244184,-514.97195478,0.00013698,2]
[406580614,1771954244193,-500.0,0.00013698,2]
[406580615,1771954244202,-500.0,0.00013698,2]
[406580616,1771954244211,-500.0,0.00013698,2]
[406580617,1771954244221,-500.0,0.00013698,2]
[406580618,1771954244230,-500.0,0.00013698,2]
[406580619,1771954244240,-500.0,0.00013698,2]
[406580620,1771954244250,-500.0,0.00013698,2]
[406580621,1771954244263,-500.0,0.00013698,2]
[406580622,1771954244273,-500.0,0.00013698,2]
[406580623,1771954244284,-500.0,0.00013698,2]
[406580624,1771954244295,-500.0,0.00013698,2]
[406580625,1771954244304,-500.0,0.00013698,2]
[406580626,1771954244314,-500.0,0.00013698,2]
[406580627,1771954244324,-500.0,0.00013698,2]
[406580628,1771954244334,-500.0,0.00013698,2]
[406580629,1771954244343,-500.0,0.00013698,2]
[406580630,1771954244352,-500.0,0.00013698,2]
[406580631,1771954244363,-500.0,0.00013698,2]
[406580632,1771954244373,-500.0,0.00013698,2]
[406580633,1771954244382,-500.0,0.00013698,2]
[406580634,1771954244391,-500.0,0.00013698,2]
[406580635,1771954244402,-500.0,0.00013698,2]
[406580636,1771954244411,-500.0,0.00013698,2]
[406580637,1771954244422,-500.0,0.00013698,2]
[406580638,1771954244432,-500.0,0.00013698,2]
[406580639,1771954244441,-500.0,0.00013698,2]
[406580640,1771954244452,-500.0,0.00013698,2]
[406580641,1771954244468,-500.0,0.00013698,2]
[406580642,1771954244477,-500.0,0.00013698,2]
[406580643,1771954244486,-500.0,0.00013698,2]
[406580644,1771954244496,-500.0,0.00013698,2]
[406580645,1771954244505,-500.0,0.00013698,2]
[406580646,1771954244514,-500.0,0.00013698,2]
[406580647,1771954244524,-500.0,0.00013698,2]
[406580648,1771954244533,-500.0,0.00013698,2]
[406580649,1771954244543,-500.0,0.00013698,2]
[406580650,1771954244552,-500.0,0.00013698,2]
[406580651,1771954244562,-500.0,0.00013698,2]
[406580652,1771954244571,-500.0,0.00013698,2]
[406580653,1771954244580,-500.0,0.00013698,2]
[406580654,1771954244589,-500.0,0.00013698,2]
[406580655,1771954244599,-500.0,0.00013698,2]
[406580656,1771954244608,-500.0,0.00013698,2]
[406580657,1771954244617,-500.0,0.00013698,2]
[406580658,1771954244626,-500.0,0.00013698,2]
[406580659,1771954244636,-500.0,0.00013698,2]
[406580660,1771954244646,-500.0,0.00013698,2]
[406580661,1771954244656,-500.0,0.00013698,2]